[Event "Rapid Tournament (RAP)"]
[Site "Biel, Switzerland"]
[Date "2026.07.12"]
[Round "2.48"]
[White "Jaussi, Kevin"]
[Black "Huang, Hsuan-Chen"]
[Result "0-1"]
[TimeControl "15 + 5"]
[WhiteTitle "-"]
[BlackTitle "-"]
[WhiteFideId "1324721"]
[BlackFideId "16303121"]
[WhiteElo "1859"]
[BlackElo "1648"]

1. d4 {[%clk 00:15:06]} {[%emt 00:00:03]} Nf6 {[%clk 00:15:07]} {[%emt
00:00:04]} 2. Bf4 {[%clk 00:15:09]} {[%emt 00:00:03]} d5 {[%clk 00:15:06]}
{[%emt 00:00:06]} 3. e3 {[%clk 00:15:08]} {[%emt 00:00:05]} c5 {[%clk
00:15:08]} {[%emt 00:00:02]} 4. c3 {[%clk 00:15:10]} {[%emt 00:00:03]} Nc6
{[%clk 00:15:09]} {[%emt 00:00:04]} 5. Nf3 {[%clk 00:15:10]} {[%emt 00:00:06]}
Qb6 {[%clk 00:15:12]} {[%emt 00:00:02]} 6. Qb3 {[%clk 00:15:07]} {[%emt
00:00:07]} c4 {[%clk 00:15:15]} {[%emt 00:00:03]} 7. Qxb6 {[%clk 00:15:09]}
{[%emt 00:00:03]} axb6 {[%clk 00:15:19]} {[%emt 00:00:01]} 8. Na3 {[%clk
00:15:12]} {[%emt 00:00:02]} Ra5 {[%clk 00:15:13]} {[%emt 00:00:11]} 9. Ne5
{[%clk 00:14:55]} {[%emt 00:00:20]} Bf5 {[%clk 00:14:32]} {[%emt 00:00:46]} 10.
f3 {[%clk 00:14:50]} {[%emt 00:00:11]} h5 {[%clk 00:14:10]} {[%emt 00:00:28]}
11. e4 {[%clk 00:14:39]} {[%emt 00:00:16]} dxe4 {[%clk 00:13:28]} {[%emt
00:00:47]} 12. Naxc4 {[%clk 00:14:42]} {[%emt 00:00:02]} Rb5 {[%clk 00:11:56]}
{[%emt 00:01:37]} 13. O-O-O {[%clk 00:13:26]} {[%emt 00:01:20]} Nd5 {[%clk
00:11:28]} {[%emt 00:00:33]} 14. Be3 {[%clk 00:12:48]} {[%emt 00:00:43]} f6
{[%clk 00:10:24]} {[%emt 00:01:10]} 15. Nxc6 {[%clk 00:12:32]} {[%emt
00:00:21]} bxc6 {[%clk 00:10:27]} 16. a4 {[%clk 00:12:26]} {[%emt 00:00:11]}
Ra5 {[%clk 00:08:44]} {[%emt 00:01:48]} 17. Nxa5 {[%clk 00:11:38]} {[%emt
00:00:53]} bxa5 {[%clk 00:08:30]} {[%emt 00:00:20]} 18. Re1 {[%clk 00:11:31]}
{[%emt 00:00:11]} exf3 {[%clk 00:07:49]} {[%emt 00:00:45]} 19. gxf3 {[%clk
00:11:26]} {[%emt 00:00:11]} g6 {[%clk 00:07:53]} {[%emt 00:00:01]} 20. Bc4
{[%clk 00:11:09]} {[%emt 00:00:21]} Nxe3 {[%clk 00:07:49]} {[%emt 00:00:09]} 21.
Rxe3 {[%clk 00:10:53]} {[%emt 00:00:22]} Bh6 {[%clk 00:07:53]} 22. Rhe1 {[%clk
00:10:54]} {[%emt 00:00:04]} Kd7 {[%clk 00:07:47]} {[%emt 00:00:12]} 23. Kd1
{[%clk 00:10:35]} {[%emt 00:00:24]} Bxe3 {[%clk 00:07:49]} {[%emt 00:00:04]} 24.
Rxe3 {[%clk 00:10:38]} {[%emt 00:00:01]} g5 {[%clk 00:07:41]} {[%emt 00:00:13]}
25. Bd3 {[%clk 00:10:01]} {[%emt 00:00:42]} Be6 {[%clk 00:07:21]} {[%emt
00:00:25]} 26. Bc2 {[%clk 00:09:45]} {[%emt 00:00:21]} g4 {[%clk 00:07:18]}
{[%emt 00:00:07]} 27. f4 {[%clk 00:09:45]} {[%emt 00:00:06]} h4 {[%clk
00:07:04]} {[%emt 00:00:20]} 28. Ke1 {[%clk 00:09:44]} {[%emt 00:00:04]} Rb8
{[%clk 00:07:05]} {[%emt 00:00:05]} 29. f5 {[%clk 00:05:28]} {[%emt 00:04:21]}
Bd5 {[%clk 00:06:11]} {[%emt 00:00:59]} 30. Bd1 {[%clk 00:05:32]} {[%emt
00:00:02]} Rxb2 {[%clk 00:05:33]} {[%emt 00:00:43]} 31. Bxg4 {[%clk 00:05:31]}
{[%emt 00:00:05]} Rxh2 {[%clk 00:05:34]} {[%emt 00:00:04]} 32. Be2 {[%clk
00:04:03]} {[%emt 00:01:33]} Rh1+ {[%clk 00:05:14]} {[%emt 00:00:25]} 33. Kf2
{[%clk 00:03:50]} {[%emt 00:00:17]} Rh2+ {[%clk 00:04:18]} {[%emt 00:01:02]} 34.
Kg1 {[%clk 00:03:34]} {[%emt 00:00:21]} Rg2+ {[%clk 00:04:10]} {[%emt
00:00:13]} 35. Kf1 {[%clk 00:03:38]} {[%emt 00:00:01]} Rg5 {[%clk 00:04:11]}
{[%emt 00:00:04]} 36. Bd3 {[%clk 00:03:30]} {[%emt 00:00:13]} h3 {[%clk
00:04:15]} {[%emt 00:00:01]} 37. c4 {[%clk 00:02:45]} {[%emt 00:00:51]} h2
{[%clk 00:04:13]} {[%emt 00:00:06]} 0-1

[Event "Rapid Tournament (RAP)"]
[Site "Biel, Switzerland"]
[Date "2026.07.12"]
[Round "2.49"]
[White "Rohde, Bernhard"]
[Black "Gutzwiller, Darian"]
[Result "1-0"]
[TimeControl "15 + 5"]
[WhiteTitle "-"]
[BlackTitle "-"]
[WhiteFideId "1323016"]
[BlackFideId "579000304"]
[WhiteElo "1834"]
[BlackElo "1633"]

1. e4 {[%clk 00:15:08]} c5 {[%clk 00:15:08]} {[%emt 00:00:02]} 2. d4 {[%clk
00:15:10]} {[%emt 00:00:04]} cxd4 {[%clk 00:15:10]} {[%emt 00:00:03]} 3. Nf3
{[%clk 00:15:13]} {[%emt 00:00:03]} Nc6 {[%clk 00:15:13]} {[%emt 00:00:01]} 4.
c3 {[%clk 00:15:17]} {[%emt 00:00:02]} dxc3 {[%clk 00:15:13]} {[%emt 00:00:05]}
5. Bc4 {[%clk 00:15:20]} {[%emt 00:00:01]} g6 {[%clk 00:15:12]} {[%emt
00:00:07]} 6. Nxc3 {[%clk 00:15:08]} {[%emt 00:00:18]} Bg7 {[%clk 00:15:13]}
{[%emt 00:00:03]} 7. O-O {[%clk 00:14:32]} {[%emt 00:00:40]} e6 {[%clk
00:15:16]} {[%emt 00:00:03]} 8. Nb5 {[%clk 00:14:29]} {[%emt 00:00:07]} d6
{[%clk 00:14:03]} {[%emt 00:01:19]} 9. Nxd6+ {[%clk 00:14:30]} {[%emt
00:00:03]} Kf8 {[%clk 00:13:17]} {[%emt 00:00:51]} 10. Bf4 {[%clk 00:10:58]}
{[%emt 00:03:37]} Bxb2 {[%clk 00:11:31]} {[%emt 00:01:51]} 11. Rb1 {[%clk
00:10:03]} {[%emt 00:01:00]} Bg7 {[%clk 00:10:50]} {[%emt 00:00:46]} 12. e5
{[%clk 00:09:04]} {[%emt 00:01:05]} f6 {[%clk 00:10:34]} {[%emt 00:00:20]} 13.
Re1 {[%clk 00:08:26]} {[%emt 00:00:44]} Nge7 {[%clk 00:09:58]} {[%emt
00:00:40]} 14. exf6 {[%clk 00:08:17]} {[%emt 00:00:14]} Bxf6 {[%clk 00:09:53]}
{[%emt 00:00:11]} 15. Bxe6 {[%clk 00:08:20]} {[%emt 00:00:02]} Bxe6 {[%clk
00:09:54]} {[%emt 00:00:03]} 16. Rxe6 {[%clk 00:08:23]} {[%emt 00:00:02]} Kg7
{[%clk 00:08:48]} {[%emt 00:01:11]} 17. Qb3 {[%clk 00:05:24]} {[%emt 00:03:04]}
b6 {[%clk 00:07:28]} {[%emt 00:01:26]} 18. Rxf6 {[%clk 00:05:19]} {[%emt
00:00:09]} Kxf6 {[%clk 00:06:57]} {[%emt 00:00:36]} 19. Qf7# {[%emt 00:00:02]}
1-0

[Event "Rapid Tournament (RAP)"]
[Site "Biel, Switzerland"]
[Date "2026.07.12"]
[Round "2.50"]
[White "Guidi, Elia"]
[Black "Duric, Ivan"]
[Result "0-1"]
[TimeControl "15 + 5"]
[WhiteTitle "-"]
[BlackTitle "-"]
[WhiteFideId "1351931"]
[BlackFideId "1358138"]
[WhiteElo "1627"]
[BlackElo "1832"]

1. d4 {[%clk 00:15:06]} {[%emt 00:00:03]} Nf6 {[%clk 00:15:08]} {[%emt
00:00:04]} 2. c4 {[%clk 00:15:08]} {[%emt 00:00:01]} c5 {[%clk 00:15:11]}
{[%emt 00:00:02]} 3. d5 {[%clk 00:15:12]} {[%emt 00:00:02]} e6 {[%clk
00:15:15]} {[%emt 00:00:02]} 4. Nc3 {[%clk 00:15:14]} {[%emt 00:00:02]} exd5
{[%clk 00:15:18]} {[%emt 00:00:02]} 5. cxd5 {[%clk 00:15:16]} {[%emt 00:00:03]}
d6 {[%clk 00:15:21]} {[%emt 00:00:01]} 6. Nf3 {[%clk 00:15:08]} {[%emt
00:00:13]} g6 {[%clk 00:15:04]} {[%emt 00:00:22]} 7. e4 {[%clk 00:15:05]}
{[%emt 00:00:09]} Bg7 {[%clk 00:15:07]} {[%emt 00:00:02]} 8. Bd3 {[%clk
00:14:19]} {[%emt 00:00:50]} O-O {[%clk 00:15:08]} {[%emt 00:00:04]} 9. O-O
{[%clk 00:14:21]} {[%emt 00:00:03]} Bg4 {[%clk 00:14:58]} {[%emt 00:00:15]} 10.
Rb1 {[%clk 00:14:13]} {[%emt 00:00:13]} Nbd7 {[%clk 00:13:04]} {[%emt
00:01:59]} 11. h3 {[%clk 00:13:56]} {[%emt 00:00:22]} Bxf3 {[%clk 00:13:06]}
{[%emt 00:00:05]} 12. Qxf3 {[%clk 00:13:58]} {[%emt 00:00:02]} Ne5 {[%clk
00:12:43]} {[%emt 00:00:27]} 13. Qe2 {[%clk 00:13:52]} {[%emt 00:00:11]} Rc8
{[%clk 00:12:29]} {[%emt 00:00:20]} 14. f4 {[%clk 00:12:39]} {[%emt 00:01:18]}
Nxd3 {[%clk 00:12:26]} {[%emt 00:00:09]} 15. Qxd3 {[%clk 00:12:41]} {[%emt
00:00:02]} a6 {[%clk 00:12:09]} {[%emt 00:00:22]} 16. a4 {[%clk 00:10:57]}
{[%emt 00:01:49]} Re8 {[%clk 00:12:05]} {[%emt 00:00:09]} 17. Bd2 {[%clk
00:09:50]} {[%emt 00:01:12]} c4 {[%clk 00:08:57]} {[%emt 00:03:12]} 18. Qf3
{[%clk 00:09:09]} {[%emt 00:00:46]} b5 {[%clk 00:08:52]} {[%emt 00:00:11]} 19.
axb5 {[%clk 00:08:57]} {[%emt 00:00:17]} axb5 {[%clk 00:08:55]} {[%emt
00:00:02]} 20. Nxb5 {[%clk 00:06:58]} {[%emt 00:02:04]} Qb6+ {[%clk 00:08:51]}
{[%emt 00:00:09]} 21. Kh1 {[%clk 00:05:48]} {[%emt 00:01:15]} Qxb5 {[%clk
00:08:54]} {[%emt 00:00:02]} 22. f5 {[%clk 00:05:51]} {[%emt 00:00:02]} Nxe4
{[%clk 00:03:30]} {[%emt 00:05:28]} 23. fxg6 {[%clk 00:04:11]} {[%emt
00:01:46]} fxg6 {[%clk 00:03:33]} {[%emt 00:00:02]} 24. Qf7+ {[%clk 00:03:42]}
{[%emt 00:00:33]} Kh8 {[%clk 00:03:36]} {[%emt 00:00:02]} 25. Bc3 {[%clk
00:00:27]} {[%emt 00:03:21]} Rg8 {[%clk 00:02:09]} {[%emt 00:01:31]} 26. Ra1
{[%clk 00:00:14]} {[%emt 00:00:19]} Ng3+ {[%clk 00:02:11]} {[%emt 00:00:03]} 27.
Kh2 {[%clk 00:00:15]} {[%emt 00:00:04]} Nxf1+ {[%clk 00:02:14]} {[%emt
00:00:02]} 28. Kh1 {[%clk 00:00:19]} Ng3+ {[%clk 00:01:36]} {[%emt 00:00:42]}
29. Kh2 {[%clk 00:00:19]} {[%emt 00:00:05]} Rcf8 {[%clk 00:01:29]} {[%emt
00:00:12]} 30. Qe7 {[%clk 00:00:20]} {[%emt 00:00:04]} Nf5 {[%clk 00:01:16]}
{[%emt 00:00:18]} 31. Qc7 {[%clk 00:00:24]} {[%emt 00:00:02]} Qc5 {[%clk
00:00:48]} {[%emt 00:00:33]} 32. Qd7 {[%clk 00:00:20]} {[%emt 00:00:09]} Qe3
{[%clk 00:00:36]} {[%emt 00:00:15]} 33. Re1 {[%clk 00:00:12]} {[%emt 00:00:14]}
Qg3+ {[%clk 00:00:37]} {[%emt 00:00:04]} 34. Kh1 {[%clk 00:00:15]} {[%emt
00:00:02]} Ne3 {[%clk 00:00:23]} {[%emt 00:00:20]} 35. Re2 {[%clk 00:00:11]}
{[%emt 00:00:09]} Bxc3 {[%clk 00:00:22]} {[%emt 00:00:05]} 36. bxc3 {[%clk
00:00:12]} {[%emt 00:00:05]} Nxd5 {[%clk 00:00:20]} {[%emt 00:00:06]} 37. Ra2
{[%clk 00:00:07]} {[%emt 00:00:11]} Qe1+ {[%clk 00:00:17]} {[%emt 00:00:08]} 38.
Kh2 {[%clk 00:00:10]} {[%emt 00:00:01]} Nf4 {[%clk 00:00:17]} {[%emt 00:00:06]}
39. Ra7 {[%clk 00:00:10]} {[%emt 00:00:05]} Qh4 {[%clk 00:00:08]} {[%emt
00:00:13]} 40. Qxd6 {[%clk 00:00:06]} {[%emt 00:00:10]} Nh5 {[%clk 00:00:09]}
{[%emt 00:00:04]} 41. Qd4+ {[%clk 00:00:08]} {[%emt 00:00:03]} Qxd4 {[%emt
00:00:23]} 0-1

[Event "Rapid Tournament (RAP)"]
[Site "Biel, Switzerland"]
[Date "2026.07.12"]
[Round "2.51"]
[White "Gaier, Walter"]
[Black "Sudarsandhari Shibani, Willson"]
[Result "1-0"]
[TimeControl "15 + 5"]
[WhiteTitle "-"]
[BlackTitle "-"]
[WhiteFideId "1310186"]
[BlackFideId "1364553"]
[WhiteElo "1832"]
[BlackElo "1620"]

1. e4 {[%clk 00:15:07]} {[%emt 00:00:03]} e5 {[%clk 00:15:08]} {[%emt
00:00:03]} 2. Nf3 {[%clk 00:15:10]} {[%emt 00:00:02]} Nc6 {[%clk 00:15:10]}
{[%emt 00:00:05]} 3. c3 {[%clk 00:15:11]} Nf6 {[%clk 00:15:12]} {[%emt
00:00:04]} 4. d4 {[%clk 00:15:14]} {[%emt 00:00:02]} Bd6 {[%clk 00:15:07]}
{[%emt 00:00:10]} 5. Bd3 {[%clk 00:14:58]} {[%emt 00:00:22]} O-O {[%clk
00:14:57]} {[%emt 00:00:15]} 6. Bg5 {[%clk 00:14:38]} {[%emt 00:00:25]} h6
{[%clk 00:14:59]} {[%emt 00:00:02]} 7. Bh4 {[%clk 00:14:13]} {[%emt 00:00:31]}
exd4 {[%clk 00:14:54]} {[%emt 00:00:10]} 8. cxd4 {[%clk 00:14:03]} {[%emt
00:00:15]} Qe7 {[%clk 00:14:41]} {[%emt 00:00:17]} 9. O-O {[%clk 00:13:44]}
{[%emt 00:00:25]} g5 {[%clk 00:13:42]} {[%emt 00:01:04]} 10. e5 {[%clk
00:12:12]} {[%emt 00:01:37]} gxh4 {[%clk 00:12:45]} {[%emt 00:01:00]} 11. exd6
{[%clk 00:10:03]} {[%emt 00:02:15]} Qxd6 {[%clk 00:12:46]} {[%emt 00:00:04]} 12.
Nc3 {[%clk 00:10:06]} {[%emt 00:00:02]} Nxd4 {[%clk 00:12:37]} {[%emt
00:00:11]} 13. Nxd4 {[%clk 00:10:08]} {[%emt 00:00:07]} Ng4 {[%clk 00:12:19]}
{[%emt 00:00:11]} 14. Nf3 {[%clk 00:10:07]} {[%emt 00:00:17]} b6 {[%clk
00:12:11]} {[%emt 00:00:13]} 15. Ne4 {[%clk 00:09:37]} {[%emt 00:00:35]} Qb4
{[%clk 00:11:42]} {[%emt 00:00:33]} 16. h3 {[%clk 00:09:03]} {[%emt 00:00:40]}
d5 {[%clk 00:11:40]} {[%emt 00:00:08]} 17. Nc3 {[%clk 00:08:31]} {[%emt
00:00:36]} Nf6 {[%clk 00:11:25]} {[%emt 00:00:20]} 18. Qd2 {[%clk 00:08:01]}
{[%emt 00:00:36]} Bb7 {[%clk 00:11:19]} {[%emt 00:00:11]} 19. Qxh6 {[%clk
00:07:17]} {[%emt 00:00:49]} Qd6 {[%clk 00:10:34]} {[%emt 00:00:50]} 20. Ng5
{[%clk 00:05:15]} {[%emt 00:02:07]} Rfe8 {[%clk 00:08:02]} {[%emt 00:02:36]} 21.
Bh7+ {[%clk 00:04:37]} {[%emt 00:00:44]} Nxh7 {[%clk 00:07:25]} {[%emt
00:00:41]} 22. Qxh7+ {[%clk 00:04:37]} {[%emt 00:00:06]} Kf8 {[%clk 00:07:27]}
{[%emt 00:00:02]} 23. Qxf7# {[%clk 00:04:38]} {[%emt 00:00:03]} 1-0

[Event "Rapid Tournament (RAP)"]
[Site "Biel, Switzerland"]
[Date "2026.07.12"]
[Round "2.52"]
[White "Muller, Alexis"]
[Black "Di Meo, Quentin"]
[Result "0-1"]
[TimeControl "15 + 5"]
[WhiteTitle "-"]
[BlackTitle "-"]
[WhiteFideId "1372009"]
[BlackFideId "1338498"]
[WhiteElo "1612"]
[BlackElo "1828"]

1. d4 {[%clk 00:15:07]} {[%emt 00:00:01]} d6 {[%clk 00:15:06]} {[%emt
00:00:05]} 2. c4 {[%clk 00:15:11]} {[%emt 00:00:01]} Nf6 {[%clk 00:15:07]}
{[%emt 00:00:05]} 3. Nc3 {[%clk 00:15:14]} Nbd7 {[%clk 00:15:08]} {[%emt
00:00:04]} 4. e4 {[%clk 00:15:17]} {[%emt 00:00:03]} e5 {[%clk 00:15:08]}
{[%emt 00:00:04]} 5. d5 {[%clk 00:15:16]} {[%emt 00:00:07]} Be7 {[%clk
00:15:05]} {[%emt 00:00:07]} 6. Be3 {[%clk 00:14:56]} {[%emt 00:00:25]} a5
{[%clk 00:14:30]} {[%emt 00:00:39]} 7. Bd3 {[%clk 00:14:25]} {[%emt 00:00:37]}
c6 {[%clk 00:14:05]} {[%emt 00:00:30]} 8. Nge2 {[%clk 00:14:17]} {[%emt
00:00:13]} O-O {[%clk 00:13:41]} {[%emt 00:00:29]} 9. Qd2 {[%clk 00:13:22]}
{[%emt 00:01:00]} Ng4 {[%clk 00:13:30]} {[%emt 00:00:15]} 10. h3 {[%clk
00:12:53]} {[%emt 00:00:34]} Nxe3 {[%clk 00:13:32]} {[%emt 00:00:03]} 11. Qxe3
{[%clk 00:12:57]} {[%emt 00:00:02]} Nc5 {[%clk 00:13:14]} {[%emt 00:00:23]} 12.
Bc2 {[%clk 00:12:41]} {[%emt 00:00:21]} a4 {[%clk 00:13:00]} {[%emt 00:00:19]}
13. O-O {[%clk 00:12:34]} {[%emt 00:00:12]} f5 {[%clk 00:12:30]} {[%emt
00:00:34]} 14. f3 {[%clk 00:10:44]} {[%emt 00:01:56]} Bd7 {[%clk 00:11:33]}
{[%emt 00:01:02]} 15. Qd2 {[%clk 00:09:54]} {[%emt 00:00:54]} f4 {[%clk
00:11:05]} {[%emt 00:00:34]} 16. Qd1 {[%clk 00:08:55]} {[%emt 00:01:04]} Qb6
{[%clk 00:10:45]} {[%emt 00:00:24]} 17. Rb1 {[%clk 00:08:26]} {[%emt 00:00:35]}
Rf6 {[%clk 00:09:47]} {[%emt 00:01:02]} 18. Bxa4 {[%clk 00:08:01]} {[%emt
00:00:31]} Nxa4+ {[%clk 00:09:46]} {[%emt 00:00:06]} 19. Kh2 {[%clk 00:07:34]}
{[%emt 00:00:32]} Nxc3 {[%clk 00:09:26]} {[%emt 00:00:24]} 20. Nxc3 {[%clk
00:07:33]} {[%emt 00:00:07]} Rg6 {[%clk 00:09:13]} {[%emt 00:00:18]} 21. a3
{[%clk 00:07:01]} {[%emt 00:00:38]} Bh4 {[%clk 00:08:31]} {[%emt 00:00:45]} 22.
Qd2 {[%clk 00:06:20]} {[%emt 00:00:47]} Bg3+ {[%clk 00:08:07]} {[%emt
00:00:28]} 23. Kh1 {[%clk 00:06:22]} {[%emt 00:00:05]} Rh6 {[%clk 00:08:00]}
{[%emt 00:00:11]} 24. Ne2 {[%clk 00:04:09]} {[%emt 00:02:18]} Bxh3 {[%clk
00:07:38]} {[%emt 00:00:26]} 25. Nxg3 {[%clk 00:04:12]} {[%emt 00:00:03]} fxg3
{[%clk 00:07:41]} {[%emt 00:00:02]} 26. Qg5 {[%clk 00:03:14]} {[%emt 00:01:03]}
Bd7+ {[%clk 00:06:48]} {[%emt 00:00:58]} 0-1

[Event "Rapid Tournament (RAP)"]
[Site "Biel, Switzerland"]
[Date "2026.07.12"]
[Round "2.53"]
[White "Hajduk, Mariia"]
[Black "Yang, Sung-Jui"]
[Result "0-1"]
[TimeControl "15 + 5"]
[WhiteTitle "-"]
[BlackTitle "-"]
[WhiteFideId "1368559"]
[BlackFideId "16301048"]
[WhiteElo "1602"]
[BlackElo "1825"]

1. e4 {[%clk 00:15:08]} {[%emt 00:00:02]} c5 {[%clk 00:15:09]} 2. Nf3 {[%clk
00:15:11]} {[%emt 00:00:02]} Nc6 {[%clk 00:15:14]} 3. d4 {[%clk 00:15:13]} cxd4
{[%clk 00:15:17]} {[%emt 00:00:02]} 4. Nxd4 {[%clk 00:15:18]} {[%emt 00:00:03]}
g6 {[%clk 00:15:20]} 5. Nc3 {[%clk 00:15:16]} {[%emt 00:00:07]} Bg7 {[%clk
00:15:24]} {[%emt 00:00:01]} 6. Be3 {[%clk 00:15:17]} {[%emt 00:00:04]} Nf6
{[%clk 00:15:23]} {[%emt 00:00:05]} 7. Be2 {[%clk 00:15:11]} {[%emt 00:00:11]}
O-O {[%clk 00:15:24]} {[%emt 00:00:05]} 8. O-O {[%clk 00:15:14]} {[%emt
00:00:02]} d5 {[%clk 00:15:06]} {[%emt 00:00:22]} 9. exd5 {[%clk 00:13:59]}
{[%emt 00:01:20]} Nxd5 {[%clk 00:15:02]} {[%emt 00:00:09]} 10. Nxc6 {[%clk
00:13:34]} {[%emt 00:00:30]} bxc6 {[%clk 00:15:00]} {[%emt 00:00:08]} 11. Nxd5
{[%clk 00:13:36]} {[%emt 00:00:02]} cxd5 {[%clk 00:14:51]} {[%emt 00:00:15]} 12.
c3 {[%clk 00:13:36]} {[%emt 00:00:05]} Rb8 {[%clk 00:13:41]} {[%emt 00:01:15]}
13. Rb1 {[%clk 00:13:11]} {[%emt 00:00:30]} Qa5 {[%clk 00:12:57]} {[%emt
00:00:48]} 14. Bd4 {[%clk 00:12:12]} {[%emt 00:01:05]} e5 {[%clk 00:12:54]}
{[%emt 00:00:08]} 15. Be3 {[%clk 00:12:05]} {[%emt 00:00:12]} Be6 {[%clk
00:10:29]} {[%emt 00:02:30]} 16. b3 {[%clk 00:10:54]} {[%emt 00:01:16]} Qxa2
{[%clk 00:10:01]} {[%emt 00:00:33]} 17. Bc5 {[%clk 00:09:21]} {[%emt 00:01:38]}
Rfc8 {[%clk 00:09:42]} {[%emt 00:00:24]} 18. Bb4 {[%clk 00:09:23]} {[%emt
00:00:03]} d4 {[%clk 00:09:06]} {[%emt 00:00:41]} 19. Ra1 {[%clk 00:06:54]}
{[%emt 00:02:34]} Qxb3 {[%clk 00:09:05]} {[%emt 00:00:06]} 20. Qxb3 {[%clk
00:04:40]} {[%emt 00:02:18]} Bxb3 {[%clk 00:09:08]} {[%emt 00:00:04]} 21. Bd6
{[%clk 00:04:39]} {[%emt 00:00:04]} Rb6 {[%clk 00:08:42]} {[%emt 00:00:30]} 22.
Rab1 {[%clk 00:04:11]} {[%emt 00:00:35]} Rxc3 {[%clk 00:07:48]} {[%emt
00:01:00]} 23. Ba3 {[%clk 00:02:31]} {[%emt 00:01:44]} a5 {[%clk 00:07:25]}
{[%emt 00:00:28]} 24. Rfc1 {[%clk 00:02:20]} {[%emt 00:00:16]} a4 {[%clk
00:06:53]} {[%emt 00:00:37]} 25. Bb2 {[%clk 00:02:17]} {[%emt 00:00:08]} Rcc6
{[%clk 00:05:17]} {[%emt 00:01:41]} 26. Bf3 {[%clk 00:01:51]} {[%emt 00:00:31]}
Rc2 {[%clk 00:05:18]} {[%emt 00:00:04]} 27. Be4 {[%clk 00:01:42]} {[%emt
00:00:13]} Rxc1+ {[%clk 00:04:34]} {[%emt 00:00:50]} 28. Rxc1 {[%clk 00:01:45]}
{[%emt 00:00:01]} Be6 {[%clk 00:04:38]} {[%emt 00:00:02]} 29. Ba3 {[%clk
00:00:56]} {[%emt 00:00:54]} f5 {[%clk 00:04:19]} {[%emt 00:00:24]} 30. Bc5
{[%clk 00:00:49]} {[%emt 00:00:11]} Rb8 {[%clk 00:03:55]} {[%emt 00:00:22]} 31.
Bc6 {[%clk 00:00:49]} {[%emt 00:00:13]} Rc8 {[%clk 00:02:58]} {[%emt 00:01:02]}
32. Ba3 {[%clk 00:00:25]} {[%emt 00:00:28]} Bf8 {[%clk 00:01:48]} {[%emt
00:01:16]} 33. Bxf8 {[%emt 00:00:19]} Kxf8 {[%emt 00:00:11]} 0-1